bitfinex-derivatives/quotes_ETHF0:USTF0_20250927
["timestamp","ask_amount","ask_price","bid_price","bid_amount"]
[1758993541189,0.285,3988.9,3988.8,0.2945]
[1758993541504,1.68575048,3988.9,3988.8,15.3327192]
[1758993543002,1.68575048,3988.9,3988.8,0.9894]
[1758993544004,5.46367524,3988.9,3988.8,0.9894]
[1758993544196,4.75247524,3988.9,3988.8,15.3327192]
[1758993544392,0.69495048,3988.9,3988.8,15.3327192]
[1758993545005,1.54465003,3988.9,3988.8,15.3327192]
[1758993545203,0.81406326,3988.9,3988.8,15.3327192]
[1758993545406,0.24397048,3988.9,3988.8,15.5947192]
[1758993546000,0.94977048,3988.9,3988.8,15.3327192]
[1758993547408,0.52357048,3988.9,3988.8,15.3327192]
[1758993547706,0.24397048,3988.9,3988.8,15.3327192]
[1758993548506,1.20667048,3988.9,3988.8,14.9085192]
[1758993548705,0.2828,3988.6,3988.5,0.4476]
[1758993548907,2.23074239,3988.6,3988.5,0.584]
[1758993549708,2.23074239,3988.6,3988.5,1.0316]
[1758993552700,0.81383239,3988.6,3988.5,15.5476192]
[1758993552905,0.24397048,3988.6,3988.5,20.5476192]
[1758993555702,3.6587,3989.6,3989.5,1.0316]
[1758993555913,4.22974849,3989.6,3989.5,15.5474192]
[1758993557209,4.51254849,3989.6,3989.5,15.3749192]
[1758993557411,4.91844849,3989.6,3989.5,15.3749192]
[1758993558817,4.22974849,3989.6,3989.5,15.3749192]
[1758993559218,3.77884849,3989.6,3989.5,15.3749192]
[1758993559411,3.77884849,3989.6,3989.5,15.5474192]
[1758993559614,3.2078,3990.0,3989.9,0.45086]
[1758993559915,3.77936788,3990.0,3989.9,16.0877792]
[1758993561118,3.77936788,3990.0,3989.9,15.6369192]
[1758993561316,3.77936788,3990.0,3989.0,1.1803]
[1758993561317,0.90188,3988.0,3987.8,2.23074766]
[1758993561615,0.90188,3988.0,3986.6,4.3705172]
[1758993561616,1.13988,3987.1,3987.0,0.0478]
[1758993561814,4.46755761,3987.1,3987.0,0.0478]
[1758993562018,4.74475761,3987.1,3987.0,0.0478]
[1758993562410,4.74694882,3987.1,3987.0,0.0505366]
[1758993562609,4.74694882,3987.1,3987.0,0.0266366]
[1758993563318,0.97914882,3987.1,3987.0,0.4777366]
[1758993563621,0.97914882,3987.1,3987.0,1.0833266]
[1758993564119,0.97914882,3987.1,3987.0,0.9289266]
[1758993565208,0.97914882,3987.1,3987.0,1.0833266]
[1758993566415,0.40809121,3987.1,3987.0,1.0833266]
[1758993567619,1.02299121,3987.1,3987.0,0.4539266]
[1758993567817,1.28947049,3987.1,3987.0,0.4539266]
[1758993568124,1.28947049,3987.1,3987.0,0.9481266]
[1758993568323,0.67457049,3987.1,3987.0,1.1025266]
[1758993568915,1.28947049,3987.1,3987.0,0.4539266]
[1758993569219,1.28947049,3987.1,3987.0,1.2151266]
[1758993571022,0.26867049,3987.1,3987.0,1.3695266]
[1758993571627,1.04747049,3987.1,3987.0,1.2151266]
[1758993571930,1.38927049,3987.1,3987.0,0.7209266]
[1758993572224,1.38927049,3987.1,3987.0,0.0027366]
[1758993572528,0.9726,3986.5,3986.4,4.15326]
[1758993572719,0.9726,3986.5,3986.4,4.42026]
[1758993572923,0.9726,3987.0,3986.9,0.9454]
[1758993573225,1.23888942,3987.0,3986.9,1.2124]
[1758993573418,0.96578942,3987.0,3986.9,1.37002831]
[1758993574127,1.23888942,3987.0,3986.9,1.21562831]
[1758993574520,1.23888942,3987.0,3986.9,0.94862831]
[1758993574720,1.23888942,3987.0,3986.9,1.21462831]
[1758993574920,0.26628942,3987.0,3986.9,1.36902831]
[1758993575824,0.77198942,3987.0,3986.9,1.36902831]
[1758993576126,1.58068942,3987.0,3986.9,0.51632831]
[1758993577032,1.58068942,3987.0,3986.9,0.76342831]
[1758993577730,1.23888942,3987.0,3986.9,0.76342831]
[1758993578726,1.58068942,3987.0,3986.9,0.76342831]
[1758993580730,1.58068942,3987.0,3986.9,0.49742831]
[1758993581027,1.58068942,3987.0,3986.9,0.51632831]
[1758993581224,1.58068942,3987.0,3986.9,0.76342831]
[1758993582627,1.23888942,3987.0,3986.9,0.76342831]
[1758993582929,1.23888942,3987.0,3986.9,0.91782831]
[1758993583323,1.23888942,3987.0,3986.9,0.76342831]
[1758993584545,1.58068942,3987.0,3986.9,0.00322831]
[1758993585629,1.58068942,3987.0,3986.9,0.49742831]
[1758993586431,1.58068942,3987.0,3986.9,0.25032831]
[1758993586630,0.96578942,3987.0,3986.9,0.65182831]
[1758993586833,0.00219121,3987.1,3987.0,1.09979]
[1758993587033,0.50789121,3987.1,3987.0,1.09979]
[1758993587234,1.0476072,3987.1,3987.0,0.94539]
[1758993587434,1.3894072,3987.1,3987.0,0.94539]
[1758993588731,1.3894072,3987.1,3987.0,0.45119]
[1758993588936,1.3144,3987.0,3986.9,0.00322831]
[1758993589131,1.58101599,3987.0,3986.9,0.26822831]
[1758993589341,1.58101599,3987.0,3986.9,0.71942831]
[1758993590240,1.58101599,3987.0,3986.9,0.26822831]
[1758993590443,2.19564762,3987.0,3986.9,0.26822831]
[1758993590737,2.19564762,3987.0,3986.0,3.2078]
[1758993590738,0.6149,3986.1,3986.0,3.2078]
[1758993590943,3.4589121,3986.1,3986.0,3.2078]
[1758993591133,2.00173734,3986.1,3986.0,3.2078]
[1758993591335,2.00161959,3986.1,3986.0,3.2078]
[1758993591639,2.00161959,3986.1,3986.0,5.17238813]
[1758993591945,1.38671959,3986.1,3986.0,5.33008813]
[1758993592142,1.65981959,3986.1,3986.0,5.17238813]
[1758993592340,2.00295831,3986.1,3986.0,3.21081337]
[1758993592639,2.00295831,3986.1,3986.0,3.47581337]
[1758993593442,1.169,3985.3,3985.2,1.1852]
[1758993593640,0.26661599,3985.3,3985.2,2.64237476]
[1758993594040,0.26661599,3985.3,3985.2,1.1852]
[1758993594235,0.92821599,3985.3,3985.2,1.45717476]
[1758993594442,1.6204,3985.2,3985.1,0.8458]
[1758993594643,1.88701599,3985.2,3985.1,1.11406561]
[1758993594839,1.43561599,3985.2,3985.1,1.45346561]
[1758993595343,1.43561599,3985.2,3985.1,1.18746561]
[1758993595645,1.43561599,3985.2,3985.1,0.26826561]
[1758993596037,1.43561599,3985.2,3985.1,0.00226561]
[1758993596439,1.43561599,3985.2,3985.1,0.26826561]
[1758993596846,1.43561599,3985.2,3985.1,0.00226561]
[1758993597040,1.43561599,3985.2,3985.1,0.26826561]
[1758993597239,7.04959053,3985.2,3985.1,0.00226561]
[1758993597547,2.04959053,3985.2,3985.1,0.26826561]
[1758993597740,2.04959053,3985.2,3985.1,0.00226561]
[1758993597940,2.04959053,3985.2,3985.1,0.26826561]
[1758993598136,2.04959053,3985.2,3985.1,0.60506561]
[1758993598340,1.43561599,3985.2,3985.1,1.11406561]
[1758993598547,0.92821599,3985.2,3985.1,1.45346561]
[1758993598848,0.59241599,3985.2,3985.1,1.45346561]
[1758993599441,0.26661599,3985.2,3985.1,1.45346561]
[1758993599642,1.39422,3986.2,3985.1,1.45346561]
[1758993599643,3.2078,3985.7,3985.6,1.1852]
[1758993599842,3.2078,3985.7,3985.6,1.90255]
[1758993600247,3.5336,3985.7,3985.6,1.4512]
[1758993600644,3.5336,3985.7,3985.6,1.1852]
[1758993601051,3.5336,3985.7,3985.6,1.4512]
[1758993601345,3.8694,3986.1,3986.0,0.8634]
[1758993601545,3.5336,3986.1,3986.0,2.08971]
[1758993601939,0.6949,3986.0,3985.6,0.509]
[1758993602146,1.169,3985.7,3985.6,0.3368]
[1758993602349,1.169,3985.7,3985.6,0.6028]
[1758993602743,1.169,3985.7,3985.6,1.1118]
[1758993602944,1.169,3985.7,3985.6,1.4512]
[1758993603145,0.3258,3985.7,3985.6,1.4512]
[1758993603341,0.8332,3986.0,3985.9,0.45132]
[1758993603544,0.3258,3986.0,3985.9,1.90252]
[1758993604451,0.8332,3986.0,3985.9,1.90252]
[1758993604660,1.169,3986.0,3985.9,1.90252]
[1758993605252,0.6616,3986.0,3985.9,1.90252]
[1758993606150,4.3768,3986.6,3986.5,1.1852]
[1758993606453,4.98934337,3986.6,3986.5,1.4512]
[1758993606855,4.3768,3986.6,3986.5,1.4512]
[1758993607149,4.98936117,3986.6,3986.5,0.266]
[1758993608552,4.98936117,3986.6,3986.5,0.6028]
[1758993608748,4.98936117,3986.6,3986.5,0.6018]
[1758993609654,4.98936117,3986.6,3986.5,1.1107]
[1758993609849,4.3768,3986.6,3986.5,1.1107]
[1758993611155,3.8694,3986.6,3986.5,1.6255]
[1758993611350,4.344,3986.6,3986.5,1.4332]
[1758993611654,4.61901689,3986.6,3986.5,1.4332]
[1758993613056,1.41121689,3986.6,3986.5,1.4332]
[1758993613255,1.41121689,3986.6,3986.5,1.6255]
[1758993613656,1.41121689,3986.6,3986.5,1.4332]
[1758993613855,1.41121689,3986.6,3986.5,1.88444]
[1758993615454,0.93661689,3986.6,3986.5,1.88444]
[1758993615756,0.93661689,3986.6,3986.5,2.07674]
[1758993616150,0.27501689,3986.6,3986.5,2.07674]
[1758993616356,0.60791689,3986.6,3986.5,2.07674]
[1758993616558,0.27501689,3986.6,3986.5,3.53376196]
[1758993616756,0.60791689,3986.6,3986.5,3.53376196]
[1758993616951,1.39271689,3986.6,3986.5,3.53376196]
[1758993617859,1.39271689,3986.6,3986.5,3.73049092]
[1758993618059,1.39271689,3986.6,3986.5,3.72949092]
[1758993618363,0.91811689,3986.6,3986.5,3.72949092]
[1758993618554,0.27501689,3986.6,3986.5,3.72949092]
[1758993619060,1.07095098,3986.6,3986.5,0.45124]
[1758993619261,1.38115098,3986.6,3986.5,1.88314]
[1758993619467,0.90655098,3986.6,3986.5,2.07544]
[1758993619665,0.59635098,3986.6,3986.5,2.07544]
[1758993621464,1.38115098,3986.6,3986.5,2.07544]
[1758993621859,0.90655098,3986.6,3986.5,2.07544]
[1758993623068,0.59635098,3986.6,3986.5,2.07544]
[1758993623969,0.26345098,3986.6,3986.5,2.07544]
[1758993626571,0.26345098,3986.6,3986.5,3.89111406]
[1758993626975,0.58295098,3986.6,3986.5,3.89111406]
[1758993628374,0.3195,3986.6,3986.5,3.89111406]
[1758993628570,0.77073,3986.6,3986.5,3.43987406]
[1758993628772,1.0841,3986.6,3986.5,1.4309]
[1758993629273,1.69994628,3986.6,3986.5,1.88214]
[1758993630477,0.3069,3985.7,3985.6,0.4892]
[1758993630769,1.0841,3985.3,3985.2,1.1415]
[1758993630974,1.35889661,3985.3,3985.2,1.4055]
[1758993631173,1.35889661,3985.3,3983.8,4.49905997]
[1758993631174,5.90119661,3985.3,3984.6,3.2078]
[1758993631373,5.90119661,3985.3,3982.5,7.0530969]
[1758993631374,1.53565,3983.9,3982.5,2.69297997]
[1758993631564,0.4577,3983.3,3983.0,0.266]
[1758993631771,0.27479661,3983.2,3983.0,0.71763]
[1758993631969,0.27479661,3983.1,3983.0,0.45163]
[1758993632167,0.4577,3983.4,3983.2,0.45161]
[1758993632364,0.27400885,3983.3,3983.2,0.45161]
[1758993632570,0.27400885,3983.3,3983.2,0.71761]
[1758993632571,0.73170885,3983.3,3983.2,0.71761]
[1758993632872,0.73170885,3983.3,3983.2,2.08167406]
[1758993633080,4.25900885,3983.3,3983.2,2.08167406]
[1758993633276,4.56550983,3983.3,3983.2,2.08267406]
[1758993633877,4.56551143,3983.3,3983.2,2.08267406]
[1758993634171,4.2919,3983.3,3983.0,0.00181255]
[1758993634373,1.0841,3983.2,3983.1,0.267]
[1758993636675,1.0841,3983.2,3983.0,0.45345255]
[1758993636872,1.0841,3983.2,3983.1,0.267]
[1758993637570,1.0841,3983.2,3983.0,0.45345255]
[1758993637767,1.0841,3983.2,3983.1,0.266]
[1758993639279,0.00231081,3983.4,3983.2,0.45162]
[1758993639477,0.46001081,3983.4,3983.2,0.45162]
[1758993639980,0.4577,3983.3,3983.2,0.45162]
[1758993642879,0.7772,3983.3,3983.2,0.45162]
[1758993643668,0.7772,3983.3,3983.2,2.26729406]
[1758993645679,0.7772,3983.3,3983.2,2.53329406]
[1758993645976,0.6264,3983.1,3983.0,0.45345255]
[1758993646174,1.0841,3983.1,3983.0,0.71845255]
[1758993646782,0.7772,3983.1,3983.0,0.71845255]
[1758993646976,0.00231081,3983.4,3983.3,0.45161]
[1758993647180,0.00231081,3983.4,3983.3,2.53228406]
[1758993647785,0.32181081,3983.4,3983.3,2.53228406]
[1758993647985,0.62871081,3983.4,3983.2,0.45162]
[1758993648182,0.62871081,3983.4,3983.3,0.265]
[1758993648484,0.62871081,3983.4,3983.3,2.08067406]
[1758993648986,1.08641081,3983.4,3983.3,2.08067406]
[1758993649980,3.8342,3984.6,3984.5,0.8089]
[1758993650185,0.6264,3984.6,3984.5,1.6082]
[1758993650388,0.6264,3984.6,3984.5,1.3432]
[1758993650686,0.6264,3984.6,3984.5,1.6082]
[1758993650879,0.62930926,3984.6,3984.5,1.6082]
[1758993651680,0.32240926,3984.6,3984.5,1.6082]
[1758993651882,9.26e-06,3984.6,3984.5,1.6082]
[1758993652083,9.26e-06,3984.6,3984.5,6.6082]
[1758993652675,3.2078,3985.8,3985.7,0.8089]
[1758993652676,3.8342,3985.8,3985.7,0.8089]
[1758993652879,0.1925,3986.5,3986.1,0.45129]
[1758993652880,3.2078,3986.2,3986.1,0.45129]
[1758993653082,3.81423118,3986.2,3986.1,1.97249]
[1758993653279,4.74473118,3986.2,3986.1,1.97249]
[1758993653480,0.5554,3986.7,3986.6,0.45124]
[1758993653681,0.1483,3987.0,3986.9,0.4512]
[1758993653682,1.2639,3987.0,3986.9,0.4512]
[1758993653986,1.2639,3987.0,3986.9,0.7162]
[1758993653987,1.26578042,3987.0,3986.9,0.7162]
[1758993654688,1.26578042,3987.0,3986.9,0.265]
[1758993656091,1.26578042,3987.0,3986.9,1.1673]
[1758993656383,0.33528042,3987.0,3986.9,1.5212]
[1758993656688,1.26578042,3987.0,3986.9,0.265]
[1758993657187,1.26578042,3987.0,3986.9,1.1673]
[1758993659085,0.00188042,3987.0,3986.9,1.5212]
[1758993663296,3.2078,3988.3,3988.0,1.4778]
[1758993663488,3.2078,3988.3,3988.2,1.70726]
[1758993663888,9.4717,3988.3,3987.9,0.45109]
[1758993664094,0.5554,3988.2,3988.0,0.71508]
[1758993664294,1.2639,3988.1,3988.0,0.71508]
[1758993665005,1.2639,3988.1,3988.0,0.264]
[1758993665293,1.2639,3988.1,3987.7,3.2078]
[1758993665294,0.5554,3987.8,3987.7,3.2078]
[1758993665493,1.2639,3987.8,3987.7,3.4718]
[1758993666495,1.26677043,3988.3,3988.2,0.3216]
[1758993666799,1.53575591,3988.3,3988.2,0.264]
[1758993667000,0.7085,3987.8,3987.7,3.7885]
[1758993667198,1.2639,3987.8,3987.7,4.0525]
[1758993667408,0.7085,3987.8,3987.7,4.728]
[1758993668005,0.3334,3987.8,3987.7,4.728]
[1758993668202,0.3334,3988.2,3988.1,1.2562]
[1758993668403,0.26891777,3988.2,3988.1,1.5202]
[1758993668703,0.73707043,3988.3,3988.2,0.45106]
[1758993668900,1.2986,3988.2,3988.1,3.7709]
[1758993669103,1.2986,3988.2,3988.1,0.264]
[1758993670909,1.2986,3988.2,3988.1,1.2105]
[1758993671106,1.56757484,3988.2,3988.1,1.2105]
[1758993672708,1.00317484,3988.2,3988.1,1.5683]
[1758993673013,0.7342,3988.2,3988.1,4.7761]
[1758993673201,1.00322395,3988.2,3988.1,4.7761]
[1758993674510,0.26902395,3988.2,3988.1,4.7761]
[1758993676215,0.00287043,3988.3,3988.2,1.75536]
[1758993676606,0.45094,3989.3,3988.2,1.75536]
[1758993676607,0.45092,3989.5,3988.9,0.45097]
[1758993676812,1.74952,3989.5,3989.4,1.3043]
[1758993677011,2.6293096,3989.5,3989.4,1.5673]
[1758993677613,2.63130283,3989.5,3989.4,1.56952157]
[1758993677813,2.63130283,3989.5,3989.4,0.26522157]
[1758993678008,2.84830283,3989.5,3989.4,0.26522157]
[1758993678410,2.84830283,3989.5,3989.4,0.00222157]
[1758993678617,2.84830283,3989.5,3989.4,0.26522157]
[1758993679715,7.84830283,3989.5,3989.4,0.26522157]
[1758993679916,7.84999175,3989.5,3989.4,0.26522157]
[1758993682016,7.84999175,3989.5,3989.4,0.00222157]
[1758993682417,7.84999175,3989.5,3989.4,0.26522157]
[1758993683715,7.84999175,3989.5,3989.4,0.00222157]
[1758993684813,0.7539,3988.8,3988.5,0.5652]
[1758993685015,0.7539,3988.6,3988.5,2.02242]
[1758993685316,0.7539,3988.6,3988.5,1.62842]
[1758993685317,1.63537852,3988.6,3988.5,1.62842]
[1758993685521,1.63537852,3988.6,3988.5,2.28542]
[1758993685822,1.63537852,3988.6,3988.5,2.28778813]
[1758993686217,1.63537852,3988.6,3988.5,2.37396581]
[1758993686419,0.88147852,3988.6,3988.5,2.37396581]
[1758993687318,0.88147852,3988.6,3988.5,2.37296581]
[1758993688726,0.88147852,3988.6,3988.5,3.82853804]
[1758993690425,0.8706448,3988.6,3988.5,3.82853804]
[1758993691823,0.8706448,3988.6,3988.5,2.37296581]
[1758993693030,0.8706448,3988.6,3988.5,7.37296581]
[1758993693628,0.97679323,3989.5,3989.4,3.25539223]
[1758993693828,0.97679323,3989.5,3989.4,3.51739223]
[1758993694230,1.19849323,3989.5,3989.4,3.60356991]
[1758993695828,1.56009323,3989.5,3989.4,3.60356991]
[1758993696032,1.56009323,3989.5,3989.4,3.03836991]
[1758993696431,1.56009323,3989.5,3989.4,3.60356991]
[1758993696627,1.56009323,3989.5,3989.4,3.51739223]
[1758993696837,1.56009323,3989.5,3989.4,3.61723715]
[1758993697925,1.33839323,3989.5,3989.4,3.61723715]
[1758993698131,0.58449323,3989.5,3989.4,3.61723715]
[1758993698539,0.97679323,3989.5,3989.4,3.61723715]
[1758993700339,0.00199323,3989.5,3989.4,3.61723715]
[1758993700541,0.00199323,3989.5,3989.4,3.16631715]
[1758993700733,1.56009323,3989.5,3989.4,3.16531715]
[1758993701334,1.56009323,3989.5,3989.4,2.60011715]
[1758993702545,1.56009323,3989.5,3989.4,2.79003715]
[1758993702739,1.56009323,3989.5,3989.4,3.05103715]
[1758993703542,1.56009323,3989.5,3989.4,2.79003715]
[1758993703747,1.56009323,3989.5,3989.4,3.05103715]
[1758993704538,0.58449323,3989.5,3989.4,3.61623715]
[1758993705240,0.97679323,3989.5,3989.4,3.61623715]
[1758993705642,1.22766172,3989.5,3989.4,3.61623715]
[1758993706148,1.44936172,3989.5,3989.4,3.61623715]
[1758993706948,1.81096172,3989.5,3989.4,3.61623715]
[1758993707741,1.81096172,3989.5,3989.4,3.05103715]
[1758993708340,1.81096172,3989.5,3989.4,3.61623715]
[1758993708541,1.81096172,3989.5,3989.4,3.05103715]
[1758993709344,1.81096172,3989.5,3989.4,3.61623715]
[1758993709939,1.81096172,3989.5,3989.4,2.60011715]
[1758993710138,1.81096172,3989.5,3989.4,3.05103715]
[1758993710348,0.25286172,3989.5,3989.4,3.61623715]
[1758993711249,0.00199323,3989.5,3989.4,3.61623715]
[1758993711649,0.97679323,3989.5,3989.4,3.61623715]
[1758993711949,1.22083779,3989.5,3989.4,3.61623715]
[1758993712244,0.97679323,3989.5,3989.4,3.61623715]
[1758993712640,0.00199323,3989.5,3989.4,3.61623715]
[1758993716746,0.24613835,3989.5,3989.4,3.61623715]
[1758993719852,0.5669,3990.4,3989.6,0.5372]
[1758993720044,1.3119,3990.2,3990.1,3.2078]
[1758993720351,1.3119,3990.2,3990.1,3.4688]
[1758993720647,1.3119,3990.2,3990.1,4.2084]
[1758993720851,1.31380395,3990.2,3990.1,3.95024492]
[1758993721248,1.31380395,3990.2,3990.1,4.40108492]
[1758993721552,1.31380395,3990.2,3990.1,5.29628492]
[1758993722056,1.31380395,3990.2,3990.1,4.30824492]
[1758993722551,0.00190395,3990.2,3990.1,5.29628492]
[1758993722748,1.40994,3991.0,3990.9,0.7396]
[1758993722949,2.53111835,3991.0,3990.9,1.0006]
[1758993723146,2.08037835,3991.0,3990.9,1.0006]
[1758993723758,2.08295625,3991.0,3990.9,0.74244492]
[1758993724755,2.08295625,3991.0,3990.9,0.36084492]
[1758993726351,1.86875625,3991.0,3990.9,3.54396715]
[1758993726554,0.9349779,3991.0,3990.9,3.09321715]
[1758993726760,1.5286779,3991.0,3990.9,2.55601715]
[1758993728756,3.53765706,3991.0,3990.9,0.36084492]
[1758993729554,8.53765706,3991.0,3990.9,0.36084492]
[1758993730760,7.08208483,3991.0,3990.9,0.36084492]
[1758993731059,1.5286779,3991.0,3990.9,2.18571715]
[1758993731263,1.5286779,3991.0,3990.9,0.36084492]
[1758993731459,2.98425013,3991.0,3990.9,0.36084492]
[1758993731761,3.22623957,3991.0,3990.9,0.36084492]
[1758993732564,3.22620974,3991.0,3990.9,0.36084492]
[1758993735464,1.77063751,3991.0,3990.9,0.36084492]
[1758993736158,1.77063751,3991.0,3990.9,1.08744492]
[1758993736361,1.77063751,3991.0,3990.9,1.61744492]
[1758993736661,3.2078,3992.4,3992.2,0.3693]
[1758993736862,1.36038047,3992.3,3992.2,2.71217223]
[1758993737061,1.36038047,3992.3,3992.2,2.97317223]
[1758993737461,1.36315031,3992.3,3992.2,2.97527382]
[1758993737670,0.00276984,3992.3,3992.2,7.63864605]
[1758993737964,0.00276984,3992.3,3992.2,7.8316628]
[1758993738663,0.00276984,3992.3,3992.2,6.37609057]
[1758993738962,0.00276984,3992.3,3992.2,6.11509057]
[1758993739165,0.00276984,3992.3,3992.2,6.37609057]
[1758993739659,0.00276984,3992.3,3992.2,5.92207382]
[1758993739866,1.28556984,3992.3,3992.2,5.92207382]
[1758993740061,1.28556984,3992.3,3992.2,6.18307382]
[1758993740958,1.28556984,3992.3,3992.2,4.46650159]
[1758993741164,1.28556984,3992.3,3992.2,6.18307382]
[1758993741369,1.28556984,3992.3,3992.2,0.63240159]
[1758993741665,1.28556984,3992.3,3992.2,0.00210159]
[1758993741967,1.28556984,3992.3,3992.2,0.26310159]
[1758993744173,6.28556984,3992.3,3992.2,0.26310159]
[1758993744467,1.3145,3991.3,3991.2,5.93517223]
[1758993744667,1.3145,3991.8,3991.7,0.3687]
[1758993744862,1.3145,3991.8,3991.7,0.6297]
[1758993745468,1.3145,3991.8,3991.7,0.63262657]
[1758993746259,1.3145,3991.8,3991.7,1.53572657]
[1758993747571,6.3145,3991.8,3991.7,0.00292657]
[1758993747966,6.866019,3991.8,3991.7,0.00292657]
[1758993748569,8.67815991,3991.8,3991.7,0.00292657]
[1758993752573,1.866019,3991.8,3991.7,0.00292657]
[1758993753269,6.866019,3991.8,3991.7,0.00292657]
[1758993753467,6.866019,3991.8,3990.1,1.12711]
[1758993753468,1.3145,3990.8,3990.7,0.81947]
[1758993753674,1.3145,3990.8,3990.7,1.43717]
[1758993753872,1.3145,3990.8,3990.7,1.98357]
[1758993754374,1.3145,3990.8,3990.7,1.7246356]
[1758993754572,1.3145,3990.8,3990.7,1.9856356]
[1758993754777,1.3145,3990.8,3990.7,1.5348656]
[1758993754973,1.53780013,3990.8,3990.7,0.0020656]
[1758993760581,1.53780013,3990.8,3990.7,1.2738656]
[1758993761079,1.53780013,3990.8,3990.7,0.0020656]
[1758993761481,1.98856013,3990.8,3990.7,0.0020656]
[1758993764683,1.98856013,3990.8,3990.7,0.3707656]
[1758993764988,1.98856013,3990.8,3990.7,0.9171656]
[1758993765285,1.98838417,3990.8,3990.7,1.2738656]
[1758993765787,1.76526,3990.8,3990.7,1.2738656]
[1758993766179,1.01296,3990.8,3990.7,1.2738656]
[1758993766374,0.45069,3991.5,3991.3,0.5464]
[1758993766578,1.3145,3991.4,3991.3,0.9151]
[1758993767580,1.3145,3991.4,3991.3,1.2718]
[1758993769474,0.3712,3990.9,3990.8,0.5464]
[1758993769687,1.3145,3990.9,3990.8,1.08046]
[1758993770073,1.3145,3990.9,3990.8,1.43716]
[1758993770279,1.3145,3990.9,3990.8,1.98356]
[1758993771983,1.76525,3990.9,3990.7,0.0020656]
[1758993772188,1.76525,3990.9,3990.8,0.261]
[1758993772389,1.99314752,3990.9,3990.8,0.261]
[1758993772782,1.76525,3990.9,3990.8,0.261]
[1758993773786,3.2078,3991.3,3990.9,0.5462]
[1758993773990,1.12649,3992.4,3991.1,3.11124091]
[1758993773991,0.90932861,3991.2,3991.1,3.11124091]
[1758993774194,0.90932861,3991.2,3991.1,3.37224091]
[1758993774382,1.78032861,3991.2,3991.1,1.5601]
[1758993775786,1.2277,3991.2,3991.1,1.5601]
[1758993776589,0.8798,3991.2,3991.1,1.5601]
[1758993776791,0.3567,3991.2,3991.1,1.5601]
[1758993777993,0.8798,3991.2,3991.1,1.5601]
[1758993778591,1.2277,3991.2,3991.1,1.0139]
[1758993778795,1.78084763,3991.2,3991.1,1.0139]
[1758993779487,0.5231,3990.9,3990.7,0.0020656]
[1758993779692,1.2277,3990.8,3990.7,0.8295356]
[1758993779892,1.2277,3990.8,3990.7,2.0119356]
[1758993781504,1.2277,3990.8,3990.7,1.4657356]
[1758993781804,1.2277,3990.8,3990.7,2.0119356]
[1758993783802,1.2277,3990.8,3990.7,1.5611656]
[1758993784306,1.2277,3990.8,3990.7,2.0119456]
[1758993785304,1.2277,3990.8,3990.7,0.2620656]
[1758993786204,1.2277,3990.8,3990.7,0.6387656]
[1758993786900,1.2277,3990.8,3990.7,2.0119456]
[1758993787202,0.8798,3991.0,3990.9,1.20365]
[1758993787404,1.43335486,3991.0,3990.9,1.20365]
[1758993787804,1.43335486,3991.0,3990.9,1.74985]
[1758993788496,0.2055,3991.5,3990.9,4.95765]
[1758993788699,0.2055,3991.5,3991.3,1.2353]
[1758993788700,2.24078141,3991.4,3991.3,1.2353]
[1758993788900,2.24078141,3991.4,3991.3,1.4953]
[1758993789303,1.79008141,3991.4,3991.3,1.94601]
[1758993789509,1.79008141,3991.4,3991.3,1.4953]
[1758993791110,1.79008141,3991.4,3991.3,0.9613]
[1758993791317,1.79008141,3991.4,3991.3,1.41201]
[1758993791511,2.24078141,3991.4,3991.3,0.26]
[1758993792019,2.24078141,3991.4,3991.3,0.71071]
[1758993792314,1.79008141,3991.4,3991.3,1.94601]
[1758993794519,2.24078141,3991.4,3991.3,1.94601]
[1758993794812,1.79008141,3991.4,3991.3,1.41201]
[1758993795014,1.79008141,3991.4,3991.3,0.71071]
[1758993795915,1.79008141,3991.4,3991.3,0.45071]
[1758993796117,1.79008141,3991.4,3991.3,1.04981]
[1758993797118,1.79008141,3991.4,3991.3,0.71071]
[1758993797518,1.79008141,3991.4,3991.3,1.04981]
[1758993798627,0.55358141,3991.4,3991.3,1.94601]
[1758993798821,3.5753,3991.7,3991.6,1.15197]
[1758993799125,4.65552154,3991.7,3991.6,1.94597]
[1758993799824,3.76282154,3991.7,3991.6,1.94597]
[1758993800022,3.2078,3992.2,3992.1,1.68592]
[1758993800226,3.76238722,3992.2,3992.1,3.75806091]
[1758993800418,0.55458722,3992.2,3992.1,3.75806091]
[1758993800620,0.00276984,3992.3,3992.1,3.22406091]
[1758993800921,0.00276984,3992.3,3992.2,1.2353]
[1758993801520,0.022,3992.9,3992.8,0.45054]
[1758993801723,0.022,3992.9,3992.8,3.75798091]
[1758993802121,0.3895,3992.9,3992.8,4.4431]
[1758993802327,1.2585,3992.9,3992.8,0.5991]
[1758993802721,1.26080928,3992.9,3992.6,0.45056]
[1758993802921,1.26080928,3992.9,3992.7,0.26]
[1758993803121,1.26080928,3992.9,3992.8,0.3391]
[1758993803527,1.26080928,3992.9,3992.8,0.7002]
[1758993803724,1.26080928,3992.9,3992.8,1.2263]
[1758993805832,1.26080928,3992.9,3992.8,0.7002]
[1758993806127,1.26080928,3992.9,3992.8,0.3391]
[1758993807227,1.26080928,3992.9,3992.7,0.26]
[1758993808130,0.73560928,3992.9,3992.7,0.71055]
[1758993808431,1.2494,3992.8,3992.7,0.634]
[1758993809331,1.2494,3992.8,3992.7,0.374]
[1758993809526,1.4721,3992.5,3992.4,4.03238]
[1758993809725,1.4721,3992.5,3992.4,3.8418]
[1758993810730,1.4721,3992.5,3992.4,0.374]
[1758993811034,1.4721,3992.5,3992.4,0.634]
[1758993811931,1.4721,3992.5,3992.4,0.374]
[1758993812228,1.4721,3992.5,3992.4,0.634]
[1758993815133,1.4721,3992.5,3992.4,0.374]
[1758993815335,1.4721,3992.5,3992.4,0.634]
[1758993817043,1.92267,3992.5,3992.4,0.634]
[1758993820535,1.70002,3992.1,3992.0,3.2078]
[1758993820730,1.70002,3992.1,3992.0,3.4678]
[1758993820930,1.2494,3992.1,3992.0,4.729]
[1758993821130,1.70002,3992.1,3992.0,4.729]
[1758993821433,1.70002,3992.1,3992.0,3.4678]
[1758993824441,0.8959,3992.1,3992.0,6.39487207]
[1758993824643,0.99858,3992.4,3992.3,0.7351]
[1758993824943,1.0981948,3992.4,3992.3,1.5212]
[1758993825145,1.0981948,3992.4,3992.3,3.42467207]
[1758993825146,0.5501948,3992.4,3992.3,3.42467207]